[Event "Fall Chess Classic-B 2018"]
[Site "Saint Louis"]
[Date "2018.10.13"]
[Round "4"]
[White "Chandra, Akshat"]
[Black "Ashwin, Jayaram"]
[Result "0-1"]
[ECO "B04"]
[WhiteElo "2471"]
[BlackElo "2494"]
[Annotator "RC"]
[PlyCount "52"]
[EventDate "2018.10.10"]
[EventType "tourn"]
[EventCountry "USA"]
[SourceTitle "playchess.com"]
[Source "ChessBase"]
[SourceQuality "1"]
[TimeControl "40/5400+30:1800+30"]

1. e4 {[%emt 0:00:00]} Nf6 {[%emt 0:00:00]} 2. e5 {[%emt 0:00:11]} Nd5 {[%emt 0:00:00]} 3. d4 {[%emt 0:00:17]} d6 {[%emt 0:00:01]} 4. Nf3 {[%emt 0:00:45]} dxe5 {[%emt 0:00:09]} 5. Nxe5 {[%emt 0:00:31]} c6 {[%emt 0:00:07]} 6. Be2 {[%emt 0:03:16]} Bf5 {[%emt 0:00:41]} 7. O-O {[%emt 0:00:41]} Nd7 {[%emt 0:00:31]} 8. Nf3 {[%emt 0:21:53]} e6 {[%emt 0:01:03]} 9. c4 {[%emt 0:00:43]} N5f6 {[%emt 0:00:08]} 10. Nc3 {[%emt 0:00:46]} Bd6 {[%emt 0:03:07]} 11. Nh4 {[%emt 0:06:29]} Bg6 {[%emt 0:00:29]} 12. g3 {[%emt 0:01:19]} O-O {[%emt 0:03:29]} 13. Be3 {[%emt 0:03:35]} Re8 {[%emt 0:06:37]} 14. Nxg6 {[%emt 0:05:36]} hxg6 {[%emt 0:00:12]} 15. Qb3 {[%emt 0:12:44]} Qc7 {[%emt 0:14:19]} 16. Rfd1 {[%emt 0:01:28]} e5 {[%emt 0:02:29]} 17. c5 {[%emt 0:15:37]} Be7 {[%emt 0:00:30]} 18. dxe5 {[%emt 0:04:29]} Nxe5 {[%emt 0:01:20]} 19. Qa4 {[%emt 0:00:54]} Ned7 {[%emt 0:10:28]} 20. Qc4 {[%emt 0:01:10]} Bf8 {[%emt 0:01:39]} 21. b4 {[%emt 0:05:22]} b6 {[%emt 0:03:57]} 22. Bf4 {[%emt 0:03:56]} Ne5 {[%emt 0:01:02]} 23. Qd4 {[%emt 0:06:07]} bxc5 {[%emt 0:04:09]} 24. bxc5 {[%emt 0:00:01]} Qa5 {[%emt 0:13:02]} 25. Nb5 {[%emt 0:03:08]} Qxb5 {[%emt 0:01:38]} 26. Bxb5 {[%emt 0:01:30]} Nf3+ {[%emt 0:00:06]} 0-1